fUSD/lending_fUSD_20260504
["ID","MTS","AMOUNT","RATE_DAILY","PERIOD"]
[421568891,1777888306000,-2679.06,0.00042191,2]
[421568892,1777888306000,-2679.06,0.00042191,2]
[421568890,1777888306000,-2679.06,0.00042191,2]
[421568881,1777888306000,-2679.06,0.00042191,2]
[421568883,1777888306000,-2679.06,0.00042191,2]
[421568882,1777888306000,-2679.06,0.00042191,2]
[421568889,1777888306000,-2679.06,0.00042191,2]
[421568885,1777888306000,-2679.06,0.00042191,2]
[421568886,1777888306000,-2679.06,0.00042191,2]
[421568888,1777888306000,-2679.06,0.00042191,2]
[421568887,1777888306000,-2679.06,0.00042191,2]
[421568862,1777888306000,-28707.51542445,0.00042144,60]
[421568880,1777888306000,-2679.06,0.00042191,2]
[421568865,1777888306000,-5000.0,0.00042191,15]
[421568852,1777888306000,-258.43,0.00042,30]
[421568860,1777888306000,-351.0,0.000421,80]
[421568893,1777888306000,-2679.06,0.00042191,2]
[421568842,1777888306000,-807.84,0.00042,14]
[421568838,1777888306000,-25280.94,0.00042,2]
[421568839,1777888306000,-12093.13920662,0.00042,15]
[421568837,1777888306000,-384.59,0.00042,7]
[421568834,1777888306000,-190.65134328,0.00042,120]
[421568836,1777888306000,-1000.0,0.00042,43]
[421568841,1777888306000,-2711.54544935,0.00042,120]
[421568835,1777888306000,-3136.4005687,0.00042,120]
[421568840,1777888306000,-467.1695026,0.00042,120]
[421568845,1777888306000,-1000.0,0.00042,120]
[421568847,1777888306000,-429270.34982922,0.00042,120]
[421568843,1777888306000,-21308.6089515,0.00042,11]
[421568863,1777888306000,-305.8630068,0.00042174,120]
[421568846,1777888306000,-1000.0,0.00042,120]
[421568854,1777888306000,-517.52980268,0.00042004,2]
[421568848,1777888306000,-410.0,0.00042,120]
[421568849,1777888306000,-932.6420291,0.00042,120]
[421568851,1777888306000,-20093.63278804,0.00042,30]
[421568853,1777888306000,-18000.0,0.00042,120]
[421568866,1777888306000,-10000.0,0.00042191,15]
[421568858,1777888306000,-157.57357432,0.00042091,7]
[421568855,1777888306000,-1382.46609937,0.0004201,2]
[421568857,1777888306000,-170.47895723,0.00042091,30]
[421568856,1777888306000,-9066.88919333,0.0004205,2]
[421568859,1777888306000,-154.42,0.00042097,120]
[421568861,1777888306000,-212.279448,0.000421,120]
[421568864,1777888306000,-151.0,0.0004219,120]
[421568844,1777888306000,-21782.0592826,0.00042,90]
[421568895,1777888306000,-2679.06,0.00042191,2]
[421568850,1777888306000,-2389.55031109,0.00042,120]
[421568898,1777888306000,-197.68022261,0.00042192,30]
[421568939,1777888306000,-479.6,0.00042324,2]
[421568931,1777888306000,-1000.0,0.000423,120]
[421568930,1777888306000,-5000.0,0.000423,60]
[421568941,1777888306000,-15611.12893161,0.0004233,120]
[421568932,1777888306000,-948.66828783,0.000423,20]
[421568933,1777888306000,-750.0,0.000423,4]
[421568934,1777888306000,-840.46110439,0.000423,30]
[421568935,1777888306000,-152.0,0.000423,120]
[421568940,1777888306000,-425.3,0.00042324,2]
[421568938,1777888306000,-305.8630068,0.00042316,120]
[421568937,1777888306000,-1009.71,0.000423,60]
[421568936,1777888306000,-184773.0,0.000423,60]
[421568942,1777888306000,-5242.53,0.00042331,2]
[421568928,1777888306000,-471.8929496,0.000423,120]
[421568943,1777888306000,-7948.35,0.00042331,2]
[421568946,1777888306000,-1141.4,0.00042347,120]
[421568944,1777888306000,-3720.5,0.00042331,2]
[421568948,1777888306000,-283.41,0.00042361,2]
[421568945,1777888306000,-173.0,0.0004234,120]
[421568953,1777888306000,-283.41,0.00042361,2]
[421568950,1777888306000,-283.41,0.00042361,2]
[421568949,1777888306000,-283.41,0.00042361,2]
[421568954,1777888306000,-24178.53968603,0.00042363,7]
[421568951,1777888306000,-283.41,0.00042361,2]
[421568957,1777888306000,-283.41,0.00042363,2]
[421568955,1777888306000,-283.41,0.00042363,2]
[421568956,1777888306000,-283.41,0.00042363,2]
[421568896,1777888306000,-2679.0773667,0.00042191,2]
[421568947,1777888306000,-517.52980268,0.00042357,2]
[421568929,1777888306000,-157.65,0.000423,120]
[421568952,1777888306000,-283.41,0.00042361,2]
[421568925,1777888306000,-150.0,0.00042296,4]
[421568923,1777888306000,-1606326.5021,0.00042285,7]
[421568899,1777888306000,-5000.0,0.00042192,120]
[421568901,1777888306000,-5000.0,0.00042192,120]
[421568897,1777888306000,-7262.63943082,0.00042191,5]
[421568903,1777888306000,-30000.0,0.000422,120]
[421568902,1777888306000,-154.42,0.00042197,120]
[421568900,1777888306000,-5000.0,0.00042192,120]
[421568904,1777888306000,-5710.4946182,0.000422,2]
[421568906,1777888306000,-363.2381,0.000422,120]
[421568907,1777888306000,-230.8859273,0.000422,30]
[421568908,1777888306000,-183.33372683,0.000422,120]
[421568912,1777888306000,-213.78495692,0.00042203,120]
[421568914,1777888306000,-751.061463,0.00042203,2]
[421568911,1777888306000,-214.33253289,0.00042203,120]
[421568905,1777888306000,-107440.0,0.000422,120]
[421568910,1777888306000,-529.28,0.000422,120]
[421568921,1777888306000,-250.0,0.0004227,3]
[421568913,1777888306000,-220.59715014,0.00042203,120]
[421568924,1777888306000,-1136.06587396,0.00042285,2]
[421568917,1777888306000,-8004.43067809,0.00042246,120]
[421568916,1777888306000,-305.8630068,0.00042221,120]
[421568927,1777888306000,-517.52980268,0.00042298,2]
[421568922,1777888306000,-49528.60786844,0.0004228,60]
[421568920,1777888306000,-305.8630068,0.00042269,120]
[421568926,1777888306000,-154.42,0.00042297,120]
[421568919,1777888306000,-1415.39542705,0.00042265,6]
[421568918,1777888306000,-10000.0,0.0004225,120]
[421568915,1777888306000,-1255.6451725,0.00042204,2]
[421568909,1777888306000,-164.95633377,0.000422,90]
[421568985,1777888307000,-178.74450703,0.00042372,120]
[421568979,1777888307000,-1619.5,0.00042369,120]
[421568978,1777888307000,-494.29189016,0.00042369,120]
[421568984,1777888307000,-224.94573807,0.00042372,120]
[421568983,1777888307000,-19947.42415145,0.00042372,120]
[421568994,1777888307000,-152.0,0.00042383,120]
[421568982,1777888307000,-434.8240535,0.00042372,120]
[421568996,1777888307000,-50000.0,0.00042384,44]
[421568989,1777888307000,-2237.27096044,0.00042372,120]
[421568995,1777888307000,-698.0,0.00042383,120]
[421568986,1777888307000,-7098.67862995,0.00042372,120]
[421568992,1777888307000,-161.0,0.00042383,120]
[421568991,1777888307000,-216.0,0.00042383,120]
[421568988,1777888307000,-175.36042365,0.00042372,120]
[421568974,1777888307000,-283.41,0.00042365,2]
[421568990,1777888307000,-150.0,0.0004238,120]
[421568987,1777888307000,-471.72092034,0.00042372,120]
[421568975,1777888307000,-283.41,0.00042365,2]
[421568961,1777888307000,-283.41,0.00042363,2]
[421568976,1777888307000,-283.41,0.00042365,2]
[421568997,1777888307000,-50000.0,0.00042384,45]
[421568967,1777888307000,-405.64195887,0.00042365,120]
[421568966,1777888307000,-470.77498212,0.00042365,120]
[421568968,1777888307000,-157.57357432,0.00042365,7]
[421568958,1777888307000,-283.41,0.00042363,2]
[421568959,1777888307000,-283.41,0.00042363,2]
[421568960,1777888307000,-283.41,0.00042363,2]
[421568964,1777888307000,-650.0,0.00042365,120]
[421568973,1777888307000,-283.41,0.00042365,2]
[421568965,1777888307000,-169.06665037,0.00042365,120]
[421568962,1777888307000,-305.8630068,0.00042363,120]
[421568970,1777888307000,-250.0,0.00042365,30]
[421568969,1777888307000,-261254.16842289,0.00042365,30]
[421568971,1777888307000,-283.46,0.00042365,2]
[421568981,1777888307000,-250.0,0.0004237,3]
[421568980,1777888307000,-297.22611423,0.0004237,2]
[421568972,1777888307000,-283.41,0.00042365,2]
[421568977,1777888307000,-283.41,0.00042365,2]
[421568963,1777888307000,-155.0,0.00042365,120]
[421568998,1777888307000,-50000.0,0.00042384,46]
[421568993,1777888307000,-157.0,0.00042383,120]
[421568999,1777888307000,-50000.0,0.00042384,47]
[421569022,1777888307000,-49963.0,0.00042385,30]
[421569024,1777888307000,-673.85,0.00042385,120]
[421569025,1777888307000,-108078.05702484,0.00042385,30]
[421569026,1777888307000,-1328578.59688133,0.00042385,30]
[421569033,1777888307000,-28095.94383122,0.00042385,30]
[421569034,1777888307000,-105565.02900185,0.00042385,30]
[421569028,1777888307000,-18227.4637896,0.00042385,30]
[421569032,1777888307000,-6343.7358526,0.00042385,120]
[421569031,1777888307000,-15986.61845268,0.00042385,30]
[421569029,1777888307000,-66725.24885384,0.00042385,30]
[421569030,1777888307000,-92145.33746291,0.00042385,120]
[421569036,1777888307000,-50000.0,0.00042385,43]
[421569035,1777888307000,-357509.37139017,0.00042385,30]
[421569039,1777888307000,-50000.0,0.00042385,49]
[421569037,1777888307000,-202470.96161651,0.00042385,30]
[421569040,1777888307000,-21069201.7573492,0.00042385,60]
[421569038,1777888307000,-50000.0,0.00042385,46]
[421569023,1777888307000,-487.0,0.00042385,120]
[421569014,1777888307000,-7204.34523895,0.00042385,30]
[421569027,1777888307000,-165533.96302324,0.00042385,30]
[421569019,1777888307000,-48299.96031463,0.00042385,30]
[421569008,1777888307000,-5043.65777053,0.00042385,30]
[421569009,1777888307000,-5642.66617895,0.00042385,30]
[421569004,1777888307000,-50000.0,0.00042384,52]
[421569017,1777888307000,-7132.7073058,0.00042385,30]
[421569002,1777888307000,-50000.0,0.00042384,50]
[421569003,1777888307000,-50000.0,0.00042384,51]
[421569006,1777888307000,-250.33,0.00042384,120]
[421569001,1777888307000,-50000.0,0.00042384,49]
[421569005,1777888307000,-50000.0,0.00042384,53]
[421569007,1777888307000,-50014108.04545801,0.00042385,30]
[421569020,1777888307000,-100000.0,0.00042385,30]
[421569011,1777888307000,-1308703.28083085,0.00042385,30]
[421569018,1777888307000,-5624.32425305,0.00042385,30]
[421569015,1777888307000,-270999.3,0.00042385,30]
[421569016,1777888307000,-19460.01089144,0.00042385,30]
[421569000,1777888307000,-50000.0,0.00042384,48]
[421569012,1777888307000,-673113.69305918,0.00042385,30]
[421569013,1777888307000,-4418.44805222,0.00042385,30]
[421569010,1777888307000,-3464.17129933,0.00042385,30]
[421569021,1777888307000,-500.0,0.00042385,120]
[421569042,1777888308000,-551.60737441,0.00040958,60]
[421569043,1777888308000,-1080.63239594,0.00042385,60]
[421569044,1777888308000,-9130.51476338,0.00042287,2]
[421569045,1777888308000,-41635.79513352,0.00042385,60]
[421569041,1777888308000,-1024.38,0.00040958,60]
[421569047,1777888309000,-152.0,0.00035192,30]
[421569051,1777888309000,-2909.49763448,0.00042385,60]
[421569052,1777888309000,-663.96504014,0.00042385,60]
[421569050,1777888309000,-1539.21954538,0.00042385,60]
[421569049,1777888309000,-1541506.74483197,0.00042385,60]
[421569048,1777888309000,-1024.5166,0.00040958,60]
[421569046,1777888309000,-152.0,0.00034192,30]
[421569053,1777888309000,-9473.02664647,0.00042385,60]
[421569055,1777888311000,161.19871834,0.00020084,30]
[421569054,1777888311000,161.19871834,0.00020115,30]
[421569057,1777888314000,161.19871834,0.000201,30]
[421569056,1777888314000,161.19871834,0.00020088,30]
[421569059,1777888331000,161.19871834,0.00020119,30]
[421569058,1777888331000,161.19871834,0.00020106,30]
[421569061,1777888349000,161.19871834,0.00020109,30]
[421569060,1777888349000,161.19871834,0.00020069,30]
[421569062,1777888639000,280.0,8.219e-05,2]
[421569064,1777889039000,280.0,8.219e-05,2]
[421569065,1777889225000,280.0,8.219e-05,2]
[421569109,1777889433000,-500.0,0.00020299,2]
[421569101,1777889433000,-200.0,0.00020298,2]
[421569107,1777889433000,-353.138314,0.00020299,2]
[421569102,1777889433000,-489.29550026,0.00020299,2]
[421569104,1777889433000,-500.0,0.00020299,2]
[421569105,1777889433000,-83161.99259166,0.000203,2]
[421569115,1777889433000,-500.0,0.00020399,2]
[421569106,1777889433000,-11840.22170259,0.000203,2]
[421569116,1777889433000,-500.0,0.00020399,2]
[421569111,1777889433000,-500.0,0.00020299,2]
[421569108,1777889433000,-146.861686,0.00020299,2]
[421569112,1777889433000,-500.0,0.00020299,2]
[421569110,1777889433000,-500.0,0.00020299,2]
[421569103,1777889433000,-974.83516932,0.00020299,2]
[421569113,1777889433000,-500.0,0.00020299,2]
[421569114,1777889433000,-29121.69110575,0.000203,2]
[421569125,1777889433000,-200.0,0.00021142,2]
[421569126,1777889433000,-197.08,0.00021333,2]
[421569118,1777889433000,-168.49,0.00020435,2]
[421569127,1777889433000,-1680.0,0.00021521,2]
[421569117,1777889433000,-394.8,0.00020399,2]
[421569100,1777889433000,-164.184,0.00020298,2]
[421569099,1777889433000,-1483.584,0.00020298,2]
[421569090,1777889433000,-150.0,0.00019962,2]
[421569128,1777889433000,-249.6,0.00021645,2]
[421569078,1777889433000,-335.0,0.00014,2]
[421569087,1777889433000,-6729.59,0.00019664,2]
[421569077,1777889433000,-250.0,0.00014,2]
[421569086,1777889433000,-1200.0,0.00019663,2]
[421569081,1777889433000,-249.6,0.00017136,2]
[421569079,1777889433000,-171.1563974,0.000154,2]
[421569080,1777889433000,-300.0,0.00016,2]
[421569084,1777889433000,-249.6,0.0001894,2]
[421569093,1777889433000,-475.0,0.0002,2]
[421569085,1777889433000,-282.59,0.00019578,2]
[421569088,1777889433000,-238.0,0.00019841,2]
[421569089,1777889433000,-249.6,0.00019842,2]
[421569096,1777889433000,-2000.0,0.00020081,2]
[421569097,1777889433000,-208.48,0.00020159,2]
[421569095,1777889433000,-154.0,0.0002,2]
[421569091,1777889433000,-400.0,0.0002,2]
[421569098,1777889433000,-2242.35732713,0.00020199,2]
[421569094,1777889433000,-155.0,0.0002,2]
[421569092,1777889433000,-156.0,0.0002,2]
[421569082,1777889433000,-350.0,0.00018,2]
[421569130,1777889433000,-5000.0,0.00021918,2]
[421569083,1777889433000,-249.6,0.00018038,2]
[421569122,1777889433000,-475.0,0.00021,2]
[421569162,1777889433000,-227.19,0.000238,14]
[421569160,1777889433000,-1871.0,0.00023555,2]
[421569170,1777889433000,-249.6,0.00024351,2]
[421569173,1777889433000,-156.33,0.00024658,2]
[421569174,1777889433000,-158.57,0.00024658,2]
[421569184,1777889433000,-163.34,0.00026027,30]
[421569175,1777889433000,-6040.0,0.00024744,2]
[421569176,1777889433000,-2463.0,0.00024744,2]
[421569177,1777889433000,-162.0,0.00025,2]
[421569178,1777889433000,-491.0,0.00025,2]
[421569179,1777889433000,-2000.0,0.00025102,2]
[421569180,1777889433000,-974.83516925,0.00025186,2]
[421569181,1777889433000,-249.6,0.00025253,2]
[421569190,1777889433000,-812.0,0.00027115,10]
[421569183,1777889433000,-158.57,0.00025342,7]
[421569182,1777889433000,-156.33,0.00025342,7]
[421569186,1777889433000,-158.57,0.00026027,30]
[421569189,1777889433000,-345.0,0.00027115,10]
[421569187,1777889433000,-249.6,0.00026155,2]
[421569188,1777889433000,-249.6,0.00027057,2]
[421569185,1777889433000,-156.33,0.00026027,30]
[421569172,1777889433000,-175.43,0.00024658,2]
[421569169,1777889433000,-166.0,0.00024,2]
[421569119,1777889433000,-249.6,0.00020743,2]
[421569171,1777889433000,-1000.0,0.00024658,2]
[421569120,1777889433000,-200.0,0.00020955,2]
[421569121,1777889433000,-156.0,0.00021,2]
[421569123,1777889433000,-155.0,0.00021,2]
[421569124,1777889433000,-154.0,0.00021,2]
[421569134,1777889433000,-156.0,0.00022,2]
[421569135,1777889433000,-475.0,0.00022,2]
[421569166,1777889433000,-156.0,0.00024,2]
[421569132,1777889433000,-450.0,0.00022,2]
[421569138,1777889433000,-154.0,0.00022,2]
[421569140,1777889433000,-355.58610813,0.00022412,2]
[421569136,1777889433000,-155.0,0.00022,2]
[421569144,1777889433000,-2000.0,0.00022591,2]
[421569142,1777889433000,-249.6,0.00022547,2]
[421569158,1777889433000,-249.6,0.00023449,2]
[421569156,1777889433000,-154.0,0.00023,2]
[421569164,1777889433000,-500.0,0.00024,2]
[421569168,1777889433000,-475.0,0.00024,2]
[421569148,1777889433000,-974.83516925,0.00022743,2]
[421569146,1777889433000,-150.0,0.000227,14]
[421569152,1777889433000,-475.0,0.00023,2]
[421569150,1777889433000,-156.0,0.00023,2]
[421569154,1777889433000,-171.0,0.00023,2]
[421569212,1777889434000,-300.0,0.00027397,2]
[421569218,1777889434000,-974.83516925,0.0002763,2]
[421569220,1777889434000,-2463.0,0.00027744,2]
[421569230,1777889434000,-156.33,0.00028873,30]
[421569231,1777889434000,-158.57,0.00028873,30]
[421569228,1777889434000,-158.57,0.00028753,7]
[421569227,1777889434000,-156.33,0.00028753,7]
[421569223,1777889434000,-500.0,0.00028512,16]
[421569226,1777889434000,-189.32,0.000287,14]
[421569236,1777889434000,-158.57,0.00029113,7]
[421569224,1777889434000,-156.33,0.00028634,2]
[421569219,1777889434000,-500.0,0.00027682,15]
[421569225,1777889434000,-158.57,0.00028634,2]
[421569221,1777889434000,-249.6,0.00027959,2]
[421569229,1777889434000,-249.6,0.0002886,2]
[421569233,1777889434000,-156.33,0.00028993,2]
[421569232,1777889434000,-386.0,0.00028969,5]
[421569241,1777889434000,-8337.3,0.000294,7]
[421569237,1777889434000,-156.35,0.00029232,30]
[421569214,1777889434000,-172.28,0.000274,7]
[421569222,1777889434000,-231.25,0.00028,2]
[421569213,1777889434000,-321.37,0.00027397,10]
[421569207,1777889434000,-500.0,0.00027123,2]
[421569216,1777889434000,-8337.3,0.000274,7]
[421569234,1777889434000,-158.57,0.00028993,2]
[421569193,1777889434000,-500.0,0.00027123,2]
[421569192,1777889434000,-500.0,0.00027123,2]
[421569194,1777889434000,-500.0,0.00027123,2]
[421569195,1777889434000,-500.0,0.00027123,2]
[421569196,1777889434000,-500.0,0.00027123,2]
[421569197,1777889434000,-208.07839763,0.00027123,2]
[421569199,1777889434000,-500.0,0.00027123,2]
[421569198,1777889434000,-150.0,0.00027123,2]
[421569206,1777889434000,-500.0,0.00027123,2]
[421569203,1777889434000,-500.0,0.00027123,2]
[421569204,1777889434000,-500.0,0.00027123,2]
[421569200,1777889434000,-500.0,0.00027123,2]
[421569201,1777889434000,-500.0,0.00027123,2]
[421569202,1777889434000,-500.0,0.00027123,2]
[421569205,1777889434000,-500.0,0.00027123,2]
[421569209,1777889434000,-1351.0,0.00027232,2]
[421569208,1777889434000,-500.0,0.00027123,2]
[421569210,1777889434000,-235.0,0.00027232,2]
[421569211,1777889434000,-1500.0,0.00027397,2]
[421569217,1777889434000,-2000.0,0.00027612,2]
[421569215,1777889434000,-157.85,0.000274,7]
[421569242,1777889434000,-150.0,0.00029534,2]
[421569191,1777889434000,-500.0,0.00027123,2]
[421569240,1777889434000,-172.28,0.000294,7]
[421569266,1777889434000,-475.0,0.00032196,30]
[421569272,1777889434000,-261.0,0.00032197,2]
[421569270,1777889434000,-155.0,0.00032196,30]
[421569269,1777889434000,-153.0,0.00032196,30]
[421569271,1777889434000,-778.0,0.00032196,30]
[421569268,1777889434000,-154.0,0.00032196,30]
[421569275,1777889434000,-333.96317184,0.0003224,2]
[421569274,1777889434000,-499.0,0.0003224,2]
[421569277,1777889434000,-411.0,0.00032263,2]
[421569286,1777889434000,-8337.3,0.000326,7]
[421569281,1777889434000,-165.0,0.00032386,2]
[421569278,1777889434000,-246.0,0.00032264,2]
[421569284,1777889434000,-974.83516925,0.00032517,2]
[421569285,1777889434000,-150.0,0.00032562,2]
[421569276,1777889434000,-411.0,0.00032249,2]
[421569283,1777889434000,-249.6,0.00032468,2]
[421569279,1777889434000,-411.0,0.00032281,2]
[421569280,1777889434000,-411.0,0.00032383,2]
[421569282,1777889434000,-181.347533,0.000324,10]
[421569287,1777889434000,-150.0,0.00033,14]
[421569239,1777889434000,-500.0,0.00029367,18]
[421569267,1777889434000,-155.0,0.00032196,30]
[421569264,1777889434000,-160.0,0.00032196,30]
[421569273,1777889434000,-150.0,0.00032222,2]
[421569265,1777889434000,-160.0,0.00032196,30]
[421569238,1777889434000,-158.61,0.00029232,30]
[421569263,1777889434000,-156.0,0.00032196,30]
[421569235,1777889434000,-156.33,0.00029113,7]
[421569243,1777889434000,-249.6,0.00029762,2]
[421569244,1777889434000,-974.83516925,0.00030074,2]
[421569245,1777889434000,-2000.0,0.00030122,2]
[421569254,1777889434000,-160.0,0.00031196,30]
[421569252,1777889434000,-156.0,0.00031196,30]
[421569248,1777889434000,-249.6,0.00030664,2]
[421569251,1777889434000,-501.40628083,0.00031156,21]
[421569253,1777889434000,-160.0,0.00031196,30]
[421569250,1777889434000,-150.0,0.00031011,2]
[421569246,1777889434000,-150.0,0.00030232,2]
[421569258,1777889434000,-153.0,0.00031196,30]
[421569247,1777889434000,-500.0,0.00030249,20]
[421569260,1777889434000,-778.0,0.00031196,30]
[421569257,1777889434000,-154.0,0.00031196,30]
[421569255,1777889434000,-475.0,0.00031196,30]
[421569259,1777889434000,-155.0,0.00031196,30]
[421569262,1777889434000,-249.6,0.00031566,2]
[421569256,1777889434000,-155.0,0.00031196,30]
[421569249,1777889434000,-2463.0,0.00030744,2]
[421569261,1777889434000,-489.29550024,0.00031296,2]
[421569332,1777889435000,-160.0,0.00036196,30]
[421569313,1777889435000,-475.0,0.00035196,30]
[421569315,1777889435000,-154.0,0.00035196,30]
[421569316,1777889435000,-163.46086277,0.00035196,30]
[421569320,1777889435000,-500.0,0.00035616,7]
[421569318,1777889435000,-778.0,0.00035196,30]
[421569317,1777889435000,-161.31781928,0.00035196,30]
[421569319,1777889435000,-172.28,0.000352,30]
[421569333,1777889435000,-475.0,0.00036196,30]
[421569322,1777889435000,-500.0,0.00035616,7]
[421569336,1777889435000,-778.0,0.00036196,30]
[421569323,1777889435000,-500.0,0.00035616,7]
[421569334,1777889435000,-155.0,0.00036196,30]
[421569328,1777889435000,-500.0,0.00035616,7]
[421569325,1777889435000,-500.0,0.00035616,7]
[421569326,1777889435000,-500.0,0.00035616,7]
[421569331,1777889435000,-156.0,0.00036196,30]
[421569330,1777889435000,-151.0,0.00036153,30]
[421569329,1777889435000,-500.0,0.00035616,7]
[421569327,1777889435000,-500.0,0.00035616,7]
[421569321,1777889435000,-500.0,0.00035616,7]
[421569324,1777889435000,-500.0,0.00035616,7]
[421569314,1777889435000,-155.0,0.00035196,30]
[421569289,1777889435000,-162.0,0.00033196,30]
[421569310,1777889435000,-3211.53,0.00034326,30]
[421569288,1777889435000,-156.0,0.00033196,30]
[421569338,1777889435000,-150.0,0.00037043,5]
[421569291,1777889435000,-475.0,0.00033196,30]
[421569290,1777889435000,-160.0,0.00033196,30]
[421569293,1777889435000,-154.0,0.00033196,30]
[421569294,1777889435000,-153.0,0.00033196,30]
[421569292,1777889435000,-155.0,0.00033196,30]
[421569295,1777889435000,-155.0,0.00033196,30]
[421569296,1777889435000,-778.0,0.00033196,30]
[421569298,1777889435000,-249.6,0.0003337,2]
[421569297,1777889435000,-150.0,0.00033232,2]
[421569309,1777889435000,-249.6,0.00034272,2]
[421569308,1777889435000,-156.84,0.00034247,2]
[421569299,1777889435000,-2219.763,0.00033744,2]
[421569300,1777889435000,-156.0,0.00034196,30]
[421569301,1777889435000,-160.0,0.00034196,30]
[421569307,1777889435000,-778.0,0.00034196,30]
[421569304,1777889435000,-154.0,0.00034196,30]
[421569303,1777889435000,-155.0,0.00034196,30]
[421569302,1777889435000,-475.0,0.00034196,30]
[421569306,1777889435000,-155.0,0.00034196,30]
[421569305,1777889435000,-153.0,0.00034196,30]
[421569311,1777889435000,-156.0,0.00035196,30]
[421569312,1777889435000,-160.0,0.00035196,30]
[421569344,1777889435000,-778.0,0.00037196,30]
[421569346,1777889435000,-152.0,0.00037935,3]
[421569335,1777889435000,-154.0,0.00036196,30]
[421569366,1777889435000,-500.0,0.00039999,31]
[421569371,1777889435000,-50000.0,0.0004,30]
[421569367,1777889435000,-317.47795163,0.00039999,31]
[421569365,1777889435000,-500.0,0.00039999,31]
[421569368,1777889435000,-599.25087051,0.00039999,31]
[421569374,1777889435000,-1359.06437337,0.000404,120]
[421569382,1777889435000,-50000.0,0.000408,30]
[421569383,1777889435000,-8337.3,0.000409,7]
[421569384,1777889435000,-113727.10446323,0.0004095,60]
[421569375,1777889435000,-1108.02533526,0.000404,120]
[421569372,1777889435000,-625.30648341,0.00040106,3]
[421569376,1777889435000,-437.51435382,0.00040445,2]
[421569379,1777889435000,-500.0,0.00040741,21]
[421569380,1777889435000,-415.18049119,0.00040741,21]
[421569381,1777889435000,-231.25,0.0004079,2]
[421569377,1777889435000,-50000.0,0.000405,30]
[421569373,1777889435000,-185.008502,0.00040243,2]
[421569337,1777889435000,-150.0,0.00036232,2]
[421569385,1777889435000,-500.0,0.00020299,2]
[421569387,1777889435000,-500.0,0.00035616,7]
[421569388,1777889435000,-3277.44,0.0004095,60]
[421569389,1777889435000,-343.32669906,0.00020299,2]
[421569378,1777889435000,-200.0,0.00040508,2]
[421569362,1777889435000,-500.0,0.00039999,31]
[421569386,1777889435000,-500.0,0.00035616,7]
[421569370,1777889435000,-1077.60817284,0.0004,62]
[421569364,1777889435000,-500.0,0.00039999,31]
[421569339,1777889435000,-156.0,0.00037196,30]
[421569345,1777889435000,-8337.3,0.000374,7]
[421569340,1777889435000,-167.0,0.00037196,30]
[421569347,1777889435000,-151.0,0.00038125,30]
[421569341,1777889435000,-475.0,0.00037196,30]
[421569343,1777889435000,-154.0,0.00037196,30]
[421569350,1777889435000,-300.000001,0.00038158,2]
[421569348,1777889435000,-161.95,0.00038127,2]
[421569351,1777889435000,-150.10115301,0.000388,2]
[421569349,1777889435000,-161.95,0.00038129,2]
[421569342,1777889435000,-155.0,0.00037196,30]
[421569353,1777889435000,-1000.0,0.00039178,2]
[421569352,1777889435000,-50000.0,0.00039,30]